[Event "Titled Tuesday Blitz August 1 Early 2023"]
[White "Kobo, Ori"]
[Black "Jain Kashish Manoj"]
[WhiteFideId "2812320"]
[BlackFideId "35081098"]
[WhiteElo "2756"]
[BlackElo "2611"]
[Result "1-0"]
[Round "7"]
[TimeControl "180+1"]
[Date "2023.08.01"]
[WhiteClock "0:00:14"]
[BlackClock "0:00:00"]
[Board "52"]

1. c4 {[%clk 0:03:00]}  Nf6 {[%clk 0:02:59]} 2. Nf3 {[%clk 0:02:59]}  g6 {[%clk 0:02:49]} 3. g3 {[%clk 0:02:58]}  Bg7 {[%clk 0:02:50]} 4. Bg2 {[%clk 0:02:59]}  O-O {[%clk 0:02:50]} 5. Nc3 {[%clk 0:02:59]}  d6 {[%clk 0:02:49]} 6. d4 {[%clk 0:02:59]}  Nc6 {[%clk 0:02:49]} 7. O-O {[%clk 0:03:00]}  e5 {[%clk 0:02:48]} 8. h3 {[%clk 0:03:00]}  Re8 {[%clk 0:02:12]} 9. d5 {[%clk 0:02:59]}  Ne7 {[%clk 0:01:55]} 10. e4 {[%clk 0:02:55]}  Nd7 {[%clk 0:01:53]} 11. Be3 {[%clk 0:02:52]}  a5 {[%clk 0:01:50]} 12. Qc2 {[%clk 0:02:40]}  h6 {[%clk 0:01:49]} 13. Nh4 {[%clk 0:02:25]}  b6 {[%clk 0:01:34]} 14. a3 {[%clk 0:02:19]}  Ba6 {[%clk 0:01:33]} 15. b3 {[%clk 0:02:17]}  Rf8 {[%clk 0:01:24]} 16. Rae1 {[%clk 0:02:08]}  Kh7 {[%clk 0:01:19]} 17. Kh2 {[%clk 0:01:55]}  Qe8 {[%clk 0:01:06]} 18. f4 {[%clk 0:01:51]}  Kh8 {[%clk 0:00:43]} 19. Qc1 {[%clk 0:01:41]}  Ng8 {[%clk 0:00:23]} 20. Rf2 {[%clk 0:01:26]}  exf4 {[%clk 0:00:23]} 21. gxf4 {[%clk 0:01:24]}  Qe7 {[%clk 0:00:18]} 22. Nf3 {[%clk 0:01:23]}  Rae8 {[%clk 0:00:18]} 23. Nd4 {[%clk 0:01:19]}  Nc5 {[%clk 0:00:18]} 24. Qc2 {[%clk 0:01:16]}  Qd7 {[%clk 0:00:16]} 25. b4 {[%clk 0:01:14]}  axb4 {[%clk 0:00:12]} 26. axb4 {[%clk 0:01:14]}  Bxc4 {[%clk 0:00:12]} 27. bxc5 {[%clk 0:01:13]}  bxc5 {[%clk 0:00:13]} 28. Nc6 {[%clk 0:01:11]}  Ba6 {[%clk 0:00:13]} 29. e5 {[%clk 0:01:03]}  Bb7 {[%clk 0:00:06]} 30. Rb1 {[%clk 0:00:59]}  Bxc6 {[%clk 0:00:06]} 31. dxc6 {[%clk 0:01:00]}  Qc8 {[%clk 0:00:06]} 32. Nd5 {[%clk 0:00:56]}  Ne7 {[%clk 0:00:04]} 33. Nxe7 {[%clk 0:00:41]}  Rxe7 {[%clk 0:00:05]} 34. Qc4 {[%clk 0:00:35]}  Rfe8 {[%clk 0:00:05]} 35. Rfb2 {[%clk 0:00:33]}  dxe5 {[%clk 0:00:02]} 36. Bxc5 {[%clk 0:00:32]}  exf4 {[%clk 0:00:02]} 37. Rb8 {[%clk 0:00:25]}  Qf5 {[%clk 0:00:02]} 38. Bxe7 {[%clk 0:00:24]}  Kh7 {[%clk 0:00:01]} 39. Rxe8 {[%clk 0:00:22]}  f3 {[%clk 0:00:00]} 40. Rb5 {[%clk 0:00:14]} 1-0


[Site "https://www.chess.com"]

[Event "Titled Tuesday Blitz August 1 Early 2023"]
[White "Starozhilov, Leonid"]
[Black "vishwa_vijeta"]
[WhiteFideId "14106752"]
[WhiteElo "2751"]
[BlackElo "2605"]
[Result "1-0"]
[Round "7"]
[TimeControl "180+1"]
[Date "2023.08.01"]
[WhiteClock "0:00:07"]
[BlackClock "0:00:08"]
[Board "53"]

1. e4 {[%clk 0:03:00]}  c5 {[%clk 0:02:59]} 2. Nf3 {[%clk 0:03:00]}  d6 {[%clk 0:03:00]} 3. Bb5+ {[%clk 0:03:00]}  Bd7 {[%clk 0:02:59]} 4. c4 {[%clk 0:02:55]}  Nc6 {[%clk 0:02:58]} 5. Nc3 {[%clk 0:02:55]}  Nf6 {[%clk 0:02:58]} 6. d3 {[%clk 0:02:46]}  g6 {[%clk 0:02:55]} 7. O-O {[%clk 0:02:46]}  Bg7 {[%clk 0:02:54]} 8. h3 {[%clk 0:02:46]}  O-O {[%clk 0:02:51]} 9. Be3 {[%clk 0:02:46]}  a6 {[%clk 0:02:48]} 10. Ba4 {[%clk 0:02:39]}  Rb8 {[%clk 0:02:45]} 11. a3 {[%clk 0:02:39]}  Ne8 {[%clk 0:02:29]} 12. Rb1 {[%clk 0:02:32]}  Nc7 {[%clk 0:02:27]} 13. Bxc6 {[%clk 0:02:31]}  Bxc6 {[%clk 0:02:27]} 14. d4 {[%clk 0:02:29]}  cxd4 {[%clk 0:02:26]} 15. Bxd4 {[%clk 0:02:28]}  Bxd4 {[%clk 0:02:23]} 16. Nxd4 {[%clk 0:02:28]}  Bd7 {[%clk 0:02:20]} 17. Qd2 {[%clk 0:02:19]}  Ne6 {[%clk 0:02:19]} 18. Nd5 {[%clk 0:02:15]}  Rc8 {[%clk 0:01:59]} 19. b3 {[%clk 0:01:57]}  Nxd4 {[%clk 0:01:51]} 20. Qxd4 {[%clk 0:01:57]}  Be6 {[%clk 0:01:50]} 21. Nc3 {[%clk 0:01:44]}  Qa5 {[%clk 0:01:46]} 22. a4 {[%clk 0:01:40]}  Qc5 {[%clk 0:01:26]} 23. Rfd1 {[%clk 0:01:36]}  Qg5 {[%clk 0:01:25]} 24. Kh1 {[%clk 0:01:27]}  Qh4 {[%clk 0:01:12]} 25. Rd3 {[%clk 0:01:23]}  Rc5 {[%clk 0:01:07]} 26. Rbd1 {[%clk 0:01:14]}  Rg5 {[%clk 0:00:48]} 27. Qe3 {[%clk 0:01:08]}  Rh5 {[%clk 0:00:42]} 28. Kh2 {[%clk 0:00:55]}  Qf6 {[%clk 0:00:31]} 29. Qf3 {[%clk 0:00:50]}  Qxf3 {[%clk 0:00:29]} 30. Rxf3 {[%clk 0:00:50]}  Kg7 {[%clk 0:00:29]} 31. Re3 {[%clk 0:00:47]}  Rc8 {[%clk 0:00:28]} 32. Kg1 {[%clk 0:00:46]}  Rhc5 {[%clk 0:00:27]} 33. f3 {[%clk 0:00:45]}  Bd7 {[%clk 0:00:27]} 34. Nd5 {[%clk 0:00:44]}  Kf8 {[%clk 0:00:26]} 35. Nb6 {[%clk 0:00:41]}  R8c7 {[%clk 0:00:26]} 36. e5 {[%clk 0:00:41]}  R5c6 {[%clk 0:00:15]} 37. exd6 {[%clk 0:00:29]}  Rxd6 {[%clk 0:00:16]} 38. Rxd6 {[%clk 0:00:28]}  exd6 {[%clk 0:00:16]} 39. Rd3 {[%clk 0:00:28]}  Bc6 {[%clk 0:00:11]} 40. Rxd6 {[%clk 0:00:26]}  Re7 {[%clk 0:00:11]} 41. Kf2 {[%clk 0:00:23]}  Kg7 {[%clk 0:00:12]} 42. Rd2 {[%clk 0:00:18]}  Re5 {[%clk 0:00:11]} 43. Re2 {[%clk 0:00:17]}  Rc5 {[%clk 0:00:09]} 44. h4 {[%clk 0:00:12]}  h5 {[%clk 0:00:09]} 45. Kg3 {[%clk 0:00:09]}  Rf5 {[%clk 0:00:08]} 46. Rd2 {[%clk 0:00:08]}  g5 {[%clk 0:00:07]} 47. hxg5 {[%clk 0:00:08]}  Rxg5+ {[%clk 0:00:08]} 48. Kf2 {[%clk 0:00:08]}  h4 {[%clk 0:00:08]} 49. Nd5 {[%clk 0:00:08]}  Rh5 {[%clk 0:00:05]} 50. Nf4 {[%clk 0:00:07]}  Rf5 {[%clk 0:00:05]} 51. Nh3 {[%clk 0:00:05]}  Rf6 {[%clk 0:00:04]} 52. Rd4 {[%clk 0:00:04]}  Rh6 {[%clk 0:00:05]} 53. Nf4 {[%clk 0:00:03]}  Kf6 {[%clk 0:00:04]} 54. a5 {[%clk 0:00:02]}  Ke5 {[%clk 0:00:04]} 55. Ke3 {[%clk 0:00:03]}  Rf6 {[%clk 0:00:03]} 56. Nd3+ {[%clk 0:00:03]}  Kf5 {[%clk 0:00:03]} 57. Rf4+ {[%clk 0:00:04]}  Kg5 {[%clk 0:00:03]} 58. Rxf6 {[%clk 0:00:05]}  Kxf6 {[%clk 0:00:04]} 59. Kf4 {[%clk 0:00:05]}  Bd7 {[%clk 0:00:04]} 60. Ne5 {[%clk 0:00:06]}  Bf5 {[%clk 0:00:03]} 61. b4 {[%clk 0:00:06]}  Be6 {[%clk 0:00:02]} 62. b5 {[%clk 0:00:06]}  Bc8 {[%clk 0:00:01]} 63. b6 {[%clk 0:00:05]}  h3 {[%clk 0:00:02]} 64. gxh3 {[%clk 0:00:05]}  Bxh3 {[%clk 0:00:03]} 65. c5 {[%clk 0:00:05]}  Bc8 {[%clk 0:00:02]} 66. c6 {[%clk 0:00:06]}  Ke6 {[%clk 0:00:03]} 67. cxb7 {[%clk 0:00:04]}  Bxb7 {[%clk 0:00:03]} 68. Nd3 {[%clk 0:00:04]}  f6 {[%clk 0:00:04]} 69. Nc5+ {[%clk 0:00:05]}  Kd6 {[%clk 0:00:04]} 70. Nxb7+ {[%clk 0:00:06]}  Kc6 {[%clk 0:00:05]} 71. Nc5 {[%clk 0:00:06]}  Kxc5 {[%clk 0:00:05]} 72. b7 {[%clk 0:00:07]}  Kc6 {[%clk 0:00:06]} 73. b8=Q {[%clk 0:00:07]}  Kc5 {[%clk 0:00:07]} 74. Qb6+ {[%clk 0:00:07]}  Kc4 {[%clk 0:00:06]} 75. Qxa6+ {[%clk 0:00:08]}  Kc3 {[%clk 0:00:07]} 76. Qxf6+ {[%clk 0:00:08]}  Kc4 {[%clk 0:00:07]} 77. Qd6 {[%clk 0:00:07]}  Kb5 {[%clk 0:00:06]} 78. a6 {[%clk 0:00:08]}  Ka5 {[%clk 0:00:07]} 79. a7 {[%clk 0:00:08]}  Ka4 {[%clk 0:00:07]} 80. a8=Q+ {[%clk 0:00:07]}  Kb3 {[%clk 0:00:08]} 81. Qad5+ {[%clk 0:00:07]}  Kb2 {[%clk 0:00:09]} 82. Qb4+ {[%clk 0:00:07]}  Kc1 {[%clk 0:00:08]} 83. Qdd2# {[%clk 0:00:07]} 1-0


[Site "https://www.chess.com"]

[Event "Titled Tuesday Blitz August 1 Early 2023"]
[White "Hoang, Thi Bao Tram"]
[Black "Mikhailovsky, Vladimir"]
[WhiteFideId "12401102"]
[BlackFideId "34105414"]
[WhiteElo "2558"]
[BlackElo "2748"]
[Result "0-1"]
[Round "7"]
[TimeControl "180+1"]
[Date "2023.08.01"]
[WhiteClock "0:00:00"]
[BlackClock "0:00:09"]
[Board "54"]

1. e4 {[%clk 0:02:45]}  Nf6 {[%clk 0:02:56]} 2. d3 {[%clk 0:02:43]}  e5 {[%clk 0:02:56]} 3. Nf3 {[%clk 0:02:42]}  Nc6 {[%clk 0:02:57]} 4. Be2 {[%clk 0:02:42]}  d5 {[%clk 0:02:57]} 5. Nbd2 {[%clk 0:02:37]}  Bc5 {[%clk 0:02:57]} 6. O-O {[%clk 0:02:37]}  O-O {[%clk 0:02:57]} 7. a3 {[%clk 0:02:34]}  a5 {[%clk 0:02:57]} 8. b3 {[%clk 0:02:28]}  Re8 {[%clk 0:02:57]} 9. Bb2 {[%clk 0:02:27]}  Bg4 {[%clk 0:02:53]} 10. h3 {[%clk 0:02:24]}  Bh5 {[%clk 0:02:47]} 11. exd5 {[%clk 0:02:09]}  Nxd5 {[%clk 0:02:43]} 12. Ne4 {[%clk 0:02:10]}  Bb6 {[%clk 0:02:42]} 13. Ng3 {[%clk 0:02:04]}  Bg6 {[%clk 0:02:39]} 14. Nd2 {[%clk 0:02:00]}  Qh4 {[%clk 0:02:34]} 15. Kh2 {[%clk 0:01:53]}  Bd4 {[%clk 0:02:08]} 16. Nf3 {[%clk 0:01:51]}  Qf4 {[%clk 0:02:04]} 17. Nxd4 {[%clk 0:01:40]}  Nxd4 {[%clk 0:02:04]} 18. Bxd4 {[%clk 0:01:34]}  Qxd4 {[%clk 0:01:54]} 19. Bf3 {[%clk 0:01:34]}  Nc3 {[%clk 0:01:52]} 20. Qc1 {[%clk 0:01:30]}  c6 {[%clk 0:01:50]} 21. Re1 {[%clk 0:01:29]}  Qxf2 {[%clk 0:01:47]} 22. Ne2 {[%clk 0:01:11]}  e4 {[%clk 0:01:31]} 23. dxe4 {[%clk 0:01:02]}  Bxe4 {[%clk 0:01:17]} 24. Rf1 {[%clk 0:00:57]}  Qc5 {[%clk 0:00:57]} 25. Nxc3 {[%clk 0:00:44]}  Qxc3 {[%clk 0:00:57]} 26. Qf4 {[%clk 0:00:44]}  Bg6 {[%clk 0:00:45]} 27. Rac1 {[%clk 0:00:36]}  Rad8 {[%clk 0:00:40]} 28. Rf2 {[%clk 0:00:27]}  Qc5 {[%clk 0:00:39]} 29. Rcf1 {[%clk 0:00:18]}  Qxa3 {[%clk 0:00:39]} 30. Bg4 {[%clk 0:00:18]}  Qd6 {[%clk 0:00:38]} 31. Qxd6 {[%clk 0:00:17]}  Rxd6 {[%clk 0:00:39]} 32. h4 {[%clk 0:00:16]}  h5 {[%clk 0:00:34]} 33. Bf3 {[%clk 0:00:15]}  Re3 {[%clk 0:00:33]} 34. Kg3 {[%clk 0:00:14]}  Rc3 {[%clk 0:00:33]} 35. Rc1 {[%clk 0:00:12]}  Rd4 {[%clk 0:00:30]} 36. Re2 {[%clk 0:00:09]}  a4 {[%clk 0:00:27]} 37. bxa4 {[%clk 0:00:09]}  Rxa4 {[%clk 0:00:28]} 38. Rb1 {[%clk 0:00:09]}  b5 {[%clk 0:00:26]} 39. Rb3 {[%clk 0:00:08]}  Rac4 {[%clk 0:00:25]} 40. Rxc3 {[%clk 0:00:03]}  Rxc3 {[%clk 0:00:26]} 41. Kf4 {[%clk 0:00:04]}  Rxc2 {[%clk 0:00:22]} 42. Rxc2 {[%clk 0:00:03]}  Bxc2 {[%clk 0:00:23]} 43. Bxc6 {[%clk 0:00:04]}  b4 {[%clk 0:00:24]} 44. Ke3 {[%clk 0:00:04]}  b3 {[%clk 0:00:23]} 45. Kd2 {[%clk 0:00:04]}  Kh7 {[%clk 0:00:18]} 46. Kc3 {[%clk 0:00:04]}  Kg6 {[%clk 0:00:18]} 47. Be8 {[%clk 0:00:04]}  Kf6 {[%clk 0:00:16]} 48. g3 {[%clk 0:00:04]}  Ke6 {[%clk 0:00:15]} 49. Kb2 {[%clk 0:00:03]}  Kf5 {[%clk 0:00:08]} 50. Bxf7 {[%clk 0:00:00]}  Kg4 {[%clk 0:00:09]} 0-1


[Site "https://www.chess.com"]

[Event "Titled Tuesday Blitz August 1 Early 2023"]
[White "Xu, Yi"]
[Black "Guz, Ari"]
[WhiteFideId "8605564"]
[BlackFideId "2825759"]
[WhiteElo "2745"]
[BlackElo "2587"]
[Result "0-1"]
[Round "7"]
[TimeControl "180+1"]
[Date "2023.08.01"]
[WhiteClock "0:00:09"]
[BlackClock "0:00:08"]
[Board "55"]

1. d4 {[%clk 0:03:00]}  e6 {[%clk 0:02:58]} 2. c4 {[%clk 0:02:59]}  d5 {[%clk 0:02:54]} 3. Nf3 {[%clk 0:03:00]}  c6 {[%clk 0:02:52]} 4. e3 {[%clk 0:02:58]}  Nf6 {[%clk 0:02:47]} 5. b3 {[%clk 0:02:58]}  Ne4 {[%clk 0:02:43]} 6. Bd3 {[%clk 0:02:55]}  Bb4+ {[%clk 0:02:41]} 7. Nbd2 {[%clk 0:02:54]}  Nd7 {[%clk 0:02:37]} 8. Bb2 {[%clk 0:02:50]}  f5 {[%clk 0:02:32]} 9. O-O {[%clk 0:02:49]}  Qf6 {[%clk 0:02:30]} 10. a3 {[%clk 0:02:46]}  Bd6 {[%clk 0:02:29]} 11. b4 {[%clk 0:02:02]}  O-O {[%clk 0:02:22]} 12. b5 {[%clk 0:02:02]}  g5 {[%clk 0:02:17]} 13. Rc1 {[%clk 0:01:49]}  g4 {[%clk 0:02:01]} 14. Ne1 {[%clk 0:01:48]}  Qh4 {[%clk 0:01:37]} 15. f4 {[%clk 0:01:42]}  Rf6 {[%clk 0:01:25]} 16. Qe2 {[%clk 0:01:31]}  Rh6 {[%clk 0:01:21]} 17. g3 {[%clk 0:01:20]}  Nxg3 {[%clk 0:01:10]} 18. Qg2 {[%clk 0:01:20]}  Nxf1 {[%clk 0:01:08]} 19. Nxf1 {[%clk 0:01:20]}  Nf6 {[%clk 0:01:06]} 20. bxc6 {[%clk 0:01:15]}  bxc6 {[%clk 0:01:05]} 21. cxd5 {[%clk 0:01:15]}  cxd5 {[%clk 0:01:06]} 22. Rc6 {[%clk 0:01:15]}  Bf8 {[%clk 0:00:54]} 23. Nc2 {[%clk 0:01:06]}  Bd7 {[%clk 0:00:52]} 24. Rc7 {[%clk 0:01:03]}  Bd6 {[%clk 0:00:49]} 25. Rb7 {[%clk 0:00:58]}  Bc6 {[%clk 0:00:48]} 26. Rb3 {[%clk 0:00:56]}  Rb8 {[%clk 0:00:48]} 27. Rxb8+ {[%clk 0:00:47]}  Bxb8 {[%clk 0:00:49]} 28. Nb4 {[%clk 0:00:48]}  Be8 {[%clk 0:00:44]} 29. Qc2 {[%clk 0:00:45]}  Bd6 {[%clk 0:00:42]} 30. Qc8 {[%clk 0:00:43]}  Kf7 {[%clk 0:00:29]} 31. Qb7+ {[%clk 0:00:41]}  Kf8 {[%clk 0:00:26]} 32. Na6 {[%clk 0:00:36]}  g3 {[%clk 0:00:19]} 33. hxg3 {[%clk 0:00:34]}  Qh1+ {[%clk 0:00:12]} 34. Kf2 {[%clk 0:00:34]}  Ng4+ {[%clk 0:00:11]} 35. Ke2 {[%clk 0:00:35]}  Qg2+ {[%clk 0:00:10]} 36. Ke1 {[%clk 0:00:24]}  Rh1 {[%clk 0:00:10]} 37. Bc1 {[%clk 0:00:11]}  Qf2+ {[%clk 0:00:10]} 38. Kd1 {[%clk 0:00:09]}  Ba4+ {[%clk 0:00:08]} 0-1


[Site "https://www.chess.com"]

[Event "Titled Tuesday Blitz August 1 Early 2023"]
[White "Ning, Kaiyu"]
[Black "Palczert, Matyas"]
[WhiteFideId "8614750"]
[BlackFideId "784958"]
[WhiteElo "2722"]
[BlackElo "2553"]
[Result "1-0"]
[Round "7"]
[TimeControl "180+1"]
[Date "2023.08.01"]
[WhiteClock "0:00:31"]
[BlackClock "0:00:00"]
[Board "56"]

1. e4 {[%clk 0:03:00]}  c5 {[%clk 0:02:59]} 2. Nf3 {[%clk 0:03:01]}  e6 {[%clk 0:03:00]} 3. d4 {[%clk 0:03:01]}  cxd4 {[%clk 0:03:01]} 4. Nxd4 {[%clk 0:03:02]}  Nc6 {[%clk 0:03:00]} 5. Nc3 {[%clk 0:03:02]}  Qc7 {[%clk 0:02:59]} 6. g3 {[%clk 0:03:01]}  a6 {[%clk 0:02:58]} 7. Bg2 {[%clk 0:03:01]}  Nf6 {[%clk 0:02:59]} 8. O-O {[%clk 0:03:01]}  Nxd4 {[%clk 0:02:59]} 9. Qxd4 {[%clk 0:03:02]}  Bc5 {[%clk 0:02:59]} 10. Bf4 {[%clk 0:03:02]}  d6 {[%clk 0:02:58]} 11. Qd2 {[%clk 0:03:02]}  h6 {[%clk 0:02:57]} 12. Rad1 {[%clk 0:03:01]}  e5 {[%clk 0:02:57]} 13. Be3 {[%clk 0:03:01]}  Bxe3 {[%clk 0:02:57]} 14. fxe3 {[%clk 0:02:58]}  Be6 {[%clk 0:02:57]} 15. Qxd6 {[%clk 0:02:58]}  Rc8 {[%clk 0:02:57]} 16. Qxc7 {[%clk 0:02:49]}  Rxc7 {[%clk 0:02:58]} 17. Rd2 {[%clk 0:02:48]}  Rxc3 {[%clk 0:02:50]} 18. bxc3 {[%clk 0:02:46]}  Ke7 {[%clk 0:02:50]} 19. a4 {[%clk 0:02:28]}  Nd7 {[%clk 0:02:44]} 20. Rb1 {[%clk 0:02:27]}  Nc5 {[%clk 0:02:35]} 21. a5 {[%clk 0:02:27]}  Rc8 {[%clk 0:02:34]} 22. Rb4 {[%clk 0:02:21]}  Rc7 {[%clk 0:02:32]} 23. Bf1 {[%clk 0:02:21]}  Nd7 {[%clk 0:02:19]} 24. Kf2 {[%clk 0:02:18]}  Nb8 {[%clk 0:02:14]} 25. Bd3 {[%clk 0:01:55]}  Nc6 {[%clk 0:02:13]} 26. Ra4 {[%clk 0:01:55]}  g6 {[%clk 0:02:08]} 27. Bc4 {[%clk 0:01:54]}  Nd8 {[%clk 0:01:40]} 28. Bxe6 {[%clk 0:01:46]}  Nxe6 {[%clk 0:01:41]} 29. Rb4 {[%clk 0:01:44]}  Nd8 {[%clk 0:01:11]} 30. c4 {[%clk 0:01:28]}  Nc6 {[%clk 0:01:06]} 31. Ra4 {[%clk 0:01:29]}  Ke6 {[%clk 0:01:00]} 32. Rd1 {[%clk 0:01:28]}  Ne7 {[%clk 0:00:52]} 33. Rb1 {[%clk 0:01:21]}  Nc6 {[%clk 0:00:37]} 34. Rb6 {[%clk 0:01:13]}  Kd7 {[%clk 0:00:32]} 35. Ra3 {[%clk 0:01:09]}  Kc8 {[%clk 0:00:30]} 36. Ke2 {[%clk 0:01:07]}  Nd8 {[%clk 0:00:29]} 37. Rd6 {[%clk 0:01:02]}  Rxc4 {[%clk 0:00:20]} 38. Kd3 {[%clk 0:01:02]}  Rc7 {[%clk 0:00:17]} 39. h4 {[%clk 0:00:47]}  Nc6 {[%clk 0:00:16]} 40. h5 {[%clk 0:00:40]}  Nb4+ {[%clk 0:00:16]} 41. Kd2 {[%clk 0:00:38]}  Rxc2+ {[%clk 0:00:10]} 42. Kd1 {[%clk 0:00:38]}  gxh5 {[%clk 0:00:09]} 43. Rb6 {[%clk 0:00:34]}  Rc4 {[%clk 0:00:08]} 44. Ra4 {[%clk 0:00:35]}  Rc3 {[%clk 0:00:01]} 45. Raxb4 {[%clk 0:00:34]}  Rxe3 {[%clk 0:00:02]} 46. Rxb7 {[%clk 0:00:33]}  Rxg3 {[%clk 0:00:02]} 47. Rxf7 {[%clk 0:00:33]}  h4 {[%clk 0:00:02]} 48. Rc4+ {[%clk 0:00:31]}  Kb8 {[%clk 0:00:01]} 49. Rc6 {[%clk 0:00:31]}  h3 {[%clk 0:00:00]} 50. Rxh6 {[%clk 0:00:31]} 1-0


[Site "https://www.chess.com"]

[Event "Titled Tuesday Blitz August 1 Early 2023"]
[White "Dimitrov, Atanas"]
[Black "EsmeraldasAnderson03"]
[WhiteFideId "2901315"]
[WhiteElo "2715"]
[BlackElo "2447"]
[Result "1-0"]
[Round "7"]
[TimeControl "180+1"]
[Date "2023.08.01"]
[WhiteClock "0:00:08"]
[BlackClock "0:00:00"]
[Board "61"]

1. Nf3 {[%clk 0:03:00]}  d5 {[%clk 0:02:59]} 2. e3 {[%clk 0:03:00]}  Nf6 {[%clk 0:02:59]} 3. c4 {[%clk 0:03:00]}  e6 {[%clk 0:02:55]} 4. Nc3 {[%clk 0:03:00]}  Be7 {[%clk 0:02:56]} 5. b3 {[%clk 0:03:01]}  O-O {[%clk 0:02:56]} 6. Bb2 {[%clk 0:03:01]}  c5 {[%clk 0:02:55]} 7. cxd5 {[%clk 0:03:01]}  exd5 {[%clk 0:02:54]} 8. d4 {[%clk 0:03:00]}  b6 {[%clk 0:02:55]} 9. Be2 {[%clk 0:02:58]}  Bb7 {[%clk 0:02:55]} 10. O-O {[%clk 0:02:59]}  Nbd7 {[%clk 0:02:56]} 11. Rc1 {[%clk 0:02:58]}  Rc8 {[%clk 0:02:56]} 12. Qc2 {[%clk 0:02:52]}  Qc7 {[%clk 0:02:56]} 13. Rfd1 {[%clk 0:02:51]}  Qb8 {[%clk 0:02:55]} 14. h3 {[%clk 0:02:46]}  Qa8 {[%clk 0:02:56]} 15. Qb1 {[%clk 0:02:36]}  h6 {[%clk 0:02:55]} 16. Na4 {[%clk 0:02:12]}  Rc7 {[%clk 0:02:41]} 17. Rc2 {[%clk 0:02:05]}  Rfc8 {[%clk 0:02:38]} 18. Rdc1 {[%clk 0:02:04]}  Ne4 {[%clk 0:02:29]} 19. Qa1 {[%clk 0:02:00]}  Bf8 {[%clk 0:02:27]} 20. dxc5 {[%clk 0:01:56]}  bxc5 {[%clk 0:02:24]} 21. Ne5 {[%clk 0:01:57]}  Nb6 {[%clk 0:02:06]} 22. Nc3 {[%clk 0:01:42]}  Nxc3 {[%clk 0:02:02]} 23. Bxc3 {[%clk 0:01:39]}  d4 {[%clk 0:02:01]} 24. Bb2 {[%clk 0:01:30]}  Bxg2 {[%clk 0:01:59]} 25. exd4 {[%clk 0:01:28]}  Be4 {[%clk 0:01:36]} 26. Rc3 {[%clk 0:01:13]}  Nd5 {[%clk 0:01:33]} 27. Rg3 {[%clk 0:01:07]}  Nf4 {[%clk 0:01:32]} 28. Bf1 {[%clk 0:01:03]}  cxd4 {[%clk 0:01:00]} 29. Rxc7 {[%clk 0:01:02]}  Rxc7 {[%clk 0:01:01]} 30. Bxd4 {[%clk 0:01:02]}  Ne6 {[%clk 0:00:46]} 31. Bb2 {[%clk 0:00:52]}  Qd5 {[%clk 0:00:38]} 32. Bc4 {[%clk 0:00:50]}  Qd6 {[%clk 0:00:32]} 33. Qe1 {[%clk 0:00:42]}  Bd5 {[%clk 0:00:31]} 34. Qe3 {[%clk 0:00:33]}  Bxc4 {[%clk 0:00:25]} 35. Nxc4 {[%clk 0:00:34]}  Qd1+ {[%clk 0:00:18]} 36. Kg2 {[%clk 0:00:35]}  Qd5+ {[%clk 0:00:17]} 37. Kf1 {[%clk 0:00:31]}  Qh5 {[%clk 0:00:12]} 38. Rg4 {[%clk 0:00:24]}  Ng5 {[%clk 0:00:04]} 39. Kg2 {[%clk 0:00:22]}  Re7 {[%clk 0:00:04]} 40. Qg3 {[%clk 0:00:20]}  f5 {[%clk 0:00:03]} 41. Rf4 {[%clk 0:00:18]}  Ne4 {[%clk 0:00:01]} 42. Qf3 {[%clk 0:00:09]}  Qg5+ {[%clk 0:00:02]} 43. Kh2 {[%clk 0:00:09]}  Qf6 {[%clk 0:00:00]} 44. Rxf5 {[%clk 0:00:08]} 1-0


[Site "https://www.chess.com"]

[Event "Titled Tuesday Blitz August 1 Early 2023"]
[White "Kuznetsov, Mikhail"]
[Black "Brodowski, Piotr"]
[WhiteFideId "4117190"]
[BlackFideId "1124480"]
[WhiteElo "2480"]
[BlackElo "2712"]
[Result "0-1"]
[Round "7"]
[TimeControl "180+1"]
[Date "2023.08.01"]
[WhiteClock "0:00:02"]
[BlackClock "0:00:17"]
[Board "62"]

1. Nf3 {[%clk 0:03:00]}  d5 {[%clk 0:02:58]} 2. g3 {[%clk 0:02:57]}  Bg4 {[%clk 0:02:57]} 3. Bg2 {[%clk 0:02:55]}  Nd7 {[%clk 0:02:58]} 4. d4 {[%clk 0:02:55]}  Ngf6 {[%clk 0:02:55]} 5. O-O {[%clk 0:02:54]}  e6 {[%clk 0:02:55]} 6. Nbd2 {[%clk 0:02:52]}  Be7 {[%clk 0:02:53]} 7. c3 {[%clk 0:02:47]}  O-O {[%clk 0:02:52]} 8. Re1 {[%clk 0:02:47]}  c5 {[%clk 0:02:52]} 9. e4 {[%clk 0:02:11]}  cxd4 {[%clk 0:02:46]} 10. cxd4 {[%clk 0:02:11]}  dxe4 {[%clk 0:02:41]} 11. Nxe4 {[%clk 0:02:10]}  Nxe4 {[%clk 0:02:41]} 12. Rxe4 {[%clk 0:02:09]}  Nf6 {[%clk 0:02:41]} 13. Re1 {[%clk 0:02:08]}  Rc8 {[%clk 0:02:40]} 14. Bg5 {[%clk 0:02:04]}  h6 {[%clk 0:02:36]} 15. Bd2 {[%clk 0:01:46]}  Qb6 {[%clk 0:02:30]} 16. Qb3 {[%clk 0:01:28]}  Qxb3 {[%clk 0:01:36]} 17. axb3 {[%clk 0:01:29]}  Rc2 {[%clk 0:01:37]} 18. Bc3 {[%clk 0:01:24]}  Nd5 {[%clk 0:01:24]} 19. Ne5 {[%clk 0:01:12]}  Nxc3 {[%clk 0:01:20]} 20. bxc3 {[%clk 0:01:11]}  Bf5 {[%clk 0:01:20]} 21. c4 {[%clk 0:01:00]}  a5 {[%clk 0:01:12]} 22. c5 {[%clk 0:00:25]}  Rd8 {[%clk 0:01:06]} 23. Bxb7 {[%clk 0:00:06]}  Rxd4 {[%clk 0:00:49]} 24. Nc6 {[%clk 0:00:05]}  Bxc5 {[%clk 0:00:49]} 25. Nxd4 {[%clk 0:00:03]}  Bxd4 {[%clk 0:00:49]} 26. Rf1 {[%clk 0:00:01]}  Bxa1 {[%clk 0:00:41]} 27. Rxa1 {[%clk 0:00:02]}  Bh3 {[%clk 0:00:39]} 28. f3 {[%clk 0:00:01]}  Rg2+ {[%clk 0:00:36]} 29. Kh1 {[%clk 0:00:01]}  Rb2 {[%clk 0:00:37]} 30. Kg1 {[%clk 0:00:02]}  Rxb3 {[%clk 0:00:36]} 31. Be4 {[%clk 0:00:02]}  Rb2 {[%clk 0:00:34]} 32. g4 {[%clk 0:00:02]}  g6 {[%clk 0:00:32]} 33. Rxa5 {[%clk 0:00:01]}  Rg2+ {[%clk 0:00:31]} 34. Kh1 {[%clk 0:00:02]}  Re2 {[%clk 0:00:31]} 35. Kg1 {[%clk 0:00:02]}  Bxg4 {[%clk 0:00:29]} 36. Bxg6 {[%clk 0:00:01]}  Bxf3 {[%clk 0:00:28]} 37. Bd3 {[%clk 0:00:01]}  Rd2 {[%clk 0:00:27]} 38. Bf1 {[%clk 0:00:01]}  Bd5 {[%clk 0:00:27]} 39. Ra3 {[%clk 0:00:01]}  f5 {[%clk 0:00:26]} 40. Rg3+ {[%clk 0:00:02]}  Kf7 {[%clk 0:00:25]} 41. Ra3 {[%clk 0:00:02]}  Kf6 {[%clk 0:00:25]} 42. h4 {[%clk 0:00:02]}  Rb2 {[%clk 0:00:25]} 43. Rc3 {[%clk 0:00:01]}  Rb4 {[%clk 0:00:25]} 44. Rh3 {[%clk 0:00:02]}  Rg4+ {[%clk 0:00:24]} 45. Kf2 {[%clk 0:00:01]}  Rf4+ {[%clk 0:00:24]} 46. Ke1 {[%clk 0:00:02]}  Bf3 {[%clk 0:00:22]} 47. Be2 {[%clk 0:00:01]}  Bxe2 {[%clk 0:00:19]} 48. Kxe2 {[%clk 0:00:02]}  Ra4 {[%clk 0:00:20]} 49. Ke3 {[%clk 0:00:02]}  Ra3+ {[%clk 0:00:19]} 50. Kf4 {[%clk 0:00:03]}  Rxh3 {[%clk 0:00:20]} 51. h5 {[%clk 0:00:02]}  e5# {[%clk 0:00:17]} 0-1


[Site "https://www.chess.com"]